fUST/lending_fUST_20251224
["ID","MTS","AMOUNT","RATE_DAILY","PERIOD"]
[399575578,1766509834348,-977.3,0.00011267,2]
[399575579,1766509834359,-282.65542037,0.00011268,2]
[399575580,1766509834373,-508.77975667,0.00011268,2]
[399575581,1766509834384,-904.4973452,0.00011268,2]
[399575582,1766509834394,-1413.27710187,0.00011268,2]
[399575583,1766509834407,-2033.08390766,0.00011268,2]
[399575584,1766509834417,-650.13495399,0.00011268,2]
[399575585,1766509834428,-1170.24291718,0.00011268,2]
[399575586,1766509834440,-2080.43185277,0.00011268,2]
[399575587,1766509834451,-184.09727511,0.00011268,2]
[399575588,1766509834462,-3250.67476996,0.00011268,2]
[399575589,1766509834473,-331.3750952,0.00011268,2]
[399575590,1766509834490,-2773.56790519,0.0001137,2]
[399575591,1766509834501,-873.99097358,0.000114,2]
[399575592,1766509834512,-589.11128035,0.00011612,2]
[399575593,1766509834523,-4680.97166874,0.00011636,2]
[399575594,1766509834535,-977.3,0.00011792,2]
[399575595,1766509834547,-1131.5211886,0.00011793,2]
[399575596,1766509834558,-8492.6712968,0.00011793,2]
[399575597,1766509834569,-2876.18991768,0.00011918,2]
[399575598,1766509834580,-1214.18965513,0.00011984,2]
[399575599,1766509834592,-151.0,0.00012,2]
[399575600,1766509834602,-4466.0,0.00012,2]
[399575601,1766509834613,-151.0,0.000121,2]
[399575602,1766509834624,-919.56588918,0.00012129,2]
[399575603,1766509834635,-1771.09791989,0.0001216,6]
[399575604,1766509834646,-977.3,0.00012227,2]
[399575605,1766509834658,-977.3,0.00012228,2]
[399575606,1766509834669,-977.3,0.00012228,2]
[399575607,1766509834681,-977.3,0.00012228,2]
[399575608,1766509834692,-977.3,0.00012228,2]
[399575609,1766509834703,-977.3,0.00012228,2]
[399575610,1766509834713,-977.3,0.00012228,2]
[399575611,1766509834723,-977.3,0.00012228,2]
[399575612,1766509834734,-977.3,0.00012228,2]
[399575613,1766509834746,-977.3,0.00012228,2]
[399575614,1766509834757,-977.3,0.00012228,2]
[399575615,1766509834768,-977.3,0.00012228,2]
[399575616,1766509834781,-977.3,0.00012228,2]
[399575617,1766509834791,-977.48,0.00012228,2]
[399575618,1766509834802,-11542.7332784,0.00012229,2]
[399575619,1766509834827,-151.0,0.00010274,2]
[399575620,1766509834839,-122167.70040942,0.00012229,2]
[399575937,1766509843734,-500.0,7.498e-05,2]
[399575938,1766509843745,-294.40618659,7.498e-05,2]
[399575939,1766509843756,-500.0,7.498e-05,2]
[399575940,1766509843766,-224.07280453,7.498e-05,2]
[399575941,1766509843892,-275.92719547,7.498e-05,2]
[399575942,1766509843902,-210.86542684,7.498e-05,2]
[399575943,1766509843912,-500.0,7.498e-05,2]
[399575944,1766509843922,-500.0,7.498e-05,2]
[399575945,1766509843932,-380.13726718,7.498e-05,2]
[399575946,1766509843942,-500.0,7.498e-05,2]
[399575947,1766509843952,-500.0,7.498e-05,2]
[399575948,1766509843961,-500.0,7.498e-05,2]
[399575949,1766509843971,-500.0,7.498e-05,2]
[399575950,1766509843981,-500.0,7.498e-05,2]
[399575951,1766509843991,-500.0,7.498e-05,2]
[399575952,1766509844001,-500.0,7.498e-05,2]
[399575953,1766509844011,-500.0,7.498e-05,2]
[399575954,1766509844021,-500.0,7.498e-05,2]
[399575955,1766509844031,-500.0,7.498e-05,2]
[399575956,1766509844042,-500.0,7.498e-05,2]
[399575957,1766509844052,-500.0,7.498e-05,2]
[399575958,1766509844062,-500.0,7.498e-05,2]
[399575959,1766509844072,-360.0709345,7.498e-05,2]
[399575960,1766509845589,7945.36,0.00014,30]
[399575965,1766509846658,-139.9290655,7.498e-05,2]
[399575966,1766509846668,-500.0,7.498e-05,2]
[399575967,1766509846679,-500.0,7.498e-05,2]
[399575968,1766509846690,-500.0,7.498e-05,2]
[399575969,1766509846700,-5315.2509345,7.499e-05,2]
[399576030,1766510642285,171.704,3.149e-05,2]
[399576031,1766510642497,171.704,4.724e-05,2]
[399576032,1766510642700,171.704,6.298e-05,2]
[399576071,1766511033296,-518.0,6.9e-05,2]
[399576072,1766511033306,-178.12424049,6.95e-05,2]
[399576073,1766511033316,-282.41508108,7.49e-05,2]
[399576074,1766511033325,-300.0,7.49e-05,2]
[399576075,1766511033335,-50000.0,7.491e-05,2]
[399576076,1766511033345,-288.06228169,7.496e-05,2]
[399576077,1766511033355,-775.47,8.213e-05,2]
[399576078,1766511033365,-5486.02219086,8.219e-05,2]
[399576079,1766511033374,-151.0,8.219e-05,2]
[399576080,1766511033384,-151.0,8.219e-05,2]
[399576081,1766511033394,-151.0,8.219e-05,2]
[399576082,1766511033403,-151.0,8.219e-05,2]
[399576083,1766511033413,-151.0,8.219e-05,2]
[399576084,1766511033422,-151.0,8.219e-05,2]
[399576085,1766511033440,-151.0,8.219e-05,2]
[399576086,1766511033450,-151.0,8.219e-05,2]
[399576087,1766511033460,-400.0,8.239e-05,2]
[399576088,1766511033470,-1550.95,8.605e-05,2]
[399576089,1766511033480,-151.0,8.826e-05,2]
[399576090,1766511033489,-215.830514,8.826e-05,2]
[399576091,1766511033499,-291.08180645,8.826e-05,2]
[399576092,1766511033508,-210.18660378,8.95e-05,2]
[399576093,1766511033518,-2326.42,8.996e-05,2]
[399576094,1766511033528,-250.0,9.117e-05,2]
[399576095,1766511033538,-5486.02219085,9.239e-05,2]
[399576096,1766511033547,-3101.89,9.387e-05,2]
[399576097,1766511033557,-3877.36,9.778e-05,2]
[399576098,1766511033566,-5486.02219085,0.00010158,2]
[399576099,1766511033576,-4652.84,0.00010169,2]
[399576100,1766511033585,-423.81604006,0.00010618,2]
[399576101,1766511033595,-5428.31,0.00010664,2]
[399576102,1766511033605,-242.24896707,0.0001095,2]
[399576103,1766511033615,-6458.7720118,0.00010959,2]
[399576104,1766511033624,-999.0,0.00010959,2]
[399576105,1766511033633,-500.0,0.00010959,2]
[399576106,1766511033643,-225.58626077,0.00010959,2]
[399576107,1766511033653,-6203.78,0.00011059,2]
[399576108,1766511033662,-1000.0,0.00011072,2]
[399576109,1766511033672,-1000.0,0.00011072,2]
[399576110,1766511033681,-1000.0,0.00011072,2]
[399576111,1766511033691,-1000.0,0.00011072,2]
[399576112,1766511033700,-151.0,0.00011072,2]
[399576113,1766511033711,-1000.0,0.00011072,2]
[399576114,1766511033724,-151.0,0.00011072,2]
[399576115,1766511033734,-1000.0,0.00011072,2]
[399576116,1766511033743,-151.0,0.00011072,2]
[399576117,1766511033754,-743.04112865,0.00011072,2]
[399576118,1766511033763,-151.0,0.00011072,2]
[399576119,1766511033773,-533.88981491,0.00011072,2]
[399576120,1766511033782,-151.0,0.00011072,2]
[399576121,1766511033795,-151.0,0.00011072,2]
[399576122,1766511033805,-500.0,0.00011072,2]
[399576123,1766511033815,-151.0,0.00011072,2]
[399576124,1766511033825,-500.0,0.00011072,2]
[399576125,1766511033835,-151.0,0.00011072,2]
[399576126,1766511033844,-500.0,0.00011072,2]
[399576127,1766511033854,-151.0,0.00011072,2]
[399576128,1766511033863,-500.0,0.00011072,2]
[399576129,1766511033874,-151.0,0.00011072,2]
[399576130,1766511033883,-500.0,0.00011072,2]
[399576131,1766511033893,-151.0,0.00011072,2]
[399576132,1766511033903,-500.0,0.00011072,2]
[399576133,1766511033913,-500.0,0.00011072,2]
[399576134,1766511033923,-151.0,0.00011072,2]
[399576135,1766511033933,-500.0,0.00011072,2]
[399576136,1766511033943,-151.0,0.00011072,2]
[399576137,1766511033953,-500.0,0.00011072,2]
[399576138,1766511033964,-195.08436649,0.00011072,2]
[399576139,1766511033974,-500.0,0.00011072,2]
[399576140,1766511033984,-500.0,0.00011072,2]
[399576141,1766511033993,-500.0,0.00011072,2]
[399576142,1766511034003,-500.0,0.00011072,2]
[399576143,1766511034013,-1250.37089268,0.00011072,2]
[399576144,1766511034023,-151.0,0.00011072,2]
[399576145,1766511034033,-151.0,0.00011072,2]
[399576146,1766511034042,-151.0,0.00011072,2]
[399576147,1766511034052,-151.0,0.00011072,2]
[399576148,1766511034062,-151.0,0.00011072,2]
[399576149,1766511034071,-151.0,0.00011072,2]
[399576150,1766511034081,-151.0,0.00011072,2]
[399576151,1766511034091,-151.0,0.00011072,2]
[399576152,1766511034101,-151.0,0.00011072,2]
[399576153,1766511034111,-250.0,0.00011072,2]
[399576154,1766511034120,-151.0,0.00011072,2]
[399576155,1766511034130,-260.5753103,0.00011072,2]
[399576156,1766511034141,-151.0,0.00011072,2]
[399576157,1766511034151,-151.0,0.00011072,2]
[399576158,1766511034161,-151.0,0.00011072,2]
[399576159,1766511034171,-5486.02219085,0.00011178,2]
[399576160,1766511034181,-416.0,0.00011201,2]
[399576161,1766511034190,-234.16127265,0.00011436,2]
[399576162,1766511034200,-6979.25,0.00011454,2]
[399576163,1766511034212,-553.64373807,0.0001162,2]
[399576164,1766511034222,-401.73942584,0.00011705,2]
[399576165,1766511034231,-3233.5734248,0.00011747,2]
[399576166,1766511034241,-96664.0199034,0.00011747,2]
[399576167,1766511034251,-28684.1117254,0.00011747,2]
[399576168,1766511034261,-7754.73,0.00011849,2]
[399576169,1766511034271,-244.60660806,0.00011867,2]
[399576170,1766511034283,-421.49029077,0.00011956,2]
[399576171,1766511034293,-964.94947222,0.00011984,2]
[399576172,1766511034303,-151.0,0.00012,2]
[399576173,1766511034313,-4466.0,0.00012,2]
[399576174,1766511034323,-151.0,0.000121,2]
[399576175,1766511034333,-574.12855637,0.00012168,2]
[399576176,1766511034342,-5486.02219085,0.00012197,2]
[399576177,1766511034352,-2691.54282342,0.00012206,2]
[399576178,1766511034363,-459.13077239,0.00012222,2]
[399576179,1766511034372,-683136.4181203,0.00012229,2]
[399576180,1766511034385,-8891.02650953,0.00012229,2]
[399576181,1766511034398,-682.96239191,0.00012229,2]
[399576211,1766511039280,-256.57902813,7.49e-05,2]
[399576212,1766511039291,-500.0,7.49e-05,2]
[399576213,1766511039301,-353.29654789,7.49e-05,2]
[399576214,1766511039314,-146.70345211,7.49e-05,2]
[399576215,1766511039324,-500.0,7.49e-05,2]
[399576216,1766511039334,-500.0,7.49e-05,2]
[399576217,1766511039344,-500.0,7.49e-05,2]
[399576218,1766511039354,-293.59596621,7.49e-05,2]
[399576219,1766511039366,-206.40403379,7.49e-05,2]
[399576220,1766511039376,-641.46783964,7.49e-05,2]
[399576221,1766511039385,-500.0,7.49e-05,2]
[399576222,1766511039396,-500.0,7.49e-05,2]
[399576223,1766511039406,-500.0,7.49e-05,2]
[399576224,1766511039416,-500.0,7.49e-05,2]
[399576225,1766511039425,-335.85217341,7.49e-05,2]
[399576226,1766511039435,-500.0,7.49e-05,2]
[399576227,1766511039445,-500.0,7.49e-05,2]
[399576228,1766511039456,-500.0,7.49e-05,2]
[399576229,1766511039466,-500.0,7.49e-05,2]
[399576230,1766511039476,-500.0,7.49e-05,2]
[399576231,1766511039485,-500.0,7.49e-05,2]
[399576232,1766511039495,-500.0,7.49e-05,2]
[399576233,1766511039505,-2592.10051934,0.00012229,2]
[399576234,1766511039518,-46861.67331806,0.00012229,2]
[399576235,1766511039528,-642.92,0.00012329,2]
[399576236,1766511039537,-772.06,0.00012329,2]
[399576237,1766511039547,-643.38,0.00012329,2]
[399576238,1766511039556,-183.8330044,0.00012329,2]
[399576239,1766511039570,-183.8330044,0.00012329,2]
[399576240,1766511039580,-183.8330044,0.00012329,2]
[399576241,1766511039590,-183.8330044,0.00012329,2]
[399576242,1766511039600,-183.8330044,0.00012329,2]
[399576243,1766511039610,-183.8330044,0.00012329,2]
[399576244,1766511039619,-183.8330044,0.00012329,2]
[399576245,1766511039630,-183.8330044,0.00012329,2]
[399576246,1766511039639,-381.8660947,0.00012329,2]
[399576247,1766511039650,-279.55040921,0.00012387,2]
[399576248,1766511039659,-749.31607248,0.00012476,2]
[399576249,1766511039670,-11628.61697902,0.000125,2]
[399576250,1766511039680,-1032.35128255,0.00012657,2]
[399576251,1766511039690,-595.37131296,0.00012716,2]
[399576252,1766511039700,-716.67444003,0.00012737,2]
[399576253,1766511039712,-5000.0,0.000128,2]
[399576254,1766511039722,-2003.0,0.000128,2]
[399576255,1766511039732,-321.73629148,0.00012805,2]
[399576256,1766511039742,-140001.36278933,0.0001287,2]
[399576293,1766511040757,-2235.6750964,0.0001287,2]
[399576305,1766511043926,-232.64,8.64e-05,2]
[399576306,1766511043937,-465.28,9.052e-05,2]
[399576307,1766511043947,-697.93,9.463e-05,2]
[399576308,1766511043957,-930.57,9.875e-05,2]
[399576309,1766511043968,-1163.21,0.00010286,2]
[399576310,1766511043980,-1395.85,0.00010697,2]
[399576311,1766511043991,-1628.49,0.00011109,2]
[399576312,1766511044003,-1346.11447088,0.0001287,2]
[399576313,1766511044015,-251.0,0.0001287,2]
[399576326,1766511046688,-1146.57150981,0.0001152,2]
[399576327,1766511046846,-714.55849019,0.0001152,2]
[399576328,1766511046859,-2093.78,0.00011932,2]
[399576329,1766511046872,-536.15,0.00012329,2]
[399576330,1766511046883,-2326.42,0.00012343,2]
[399576331,1766511046895,-12321.43449473,0.0001287,2]
[399576337,1766511642487,1216.47,6.893e-05,2]
[399576369,1766512231600,-518.0,6.9e-05,2]
[399576371,1766512231612,-191.02227284,6.925e-05,2]
[399576373,1766512231623,-50000.0,7.642e-05,2]
[399576374,1766512231634,-300.0,7.642e-05,2]
[399576376,1766512231645,-300.0,7.642e-05,2]
[399576378,1766512231657,-300.0,7.642e-05,2]
[399576380,1766512231668,-1200.0,7.642e-05,2]
[399576381,1766512231678,-300.0,7.642e-05,2]
[399576382,1766512231688,-1200.0,7.643e-05,2]
[399576383,1766512231699,-305.77,7.643e-05,2]
[399576384,1766512231710,-197.69055675,7.643e-05,2]
[399576385,1766512231721,-182.38531552,7.643e-05,2]
[399576386,1766512231731,-500.0,7.643e-05,2]
[399576387,1766512231741,-500.0,7.643e-05,2]
[399576388,1766512231751,-500.0,7.643e-05,2]
[399576389,1766512231761,-500.0,7.643e-05,2]
[399576390,1766512231772,-500.0,7.643e-05,2]
[399576391,1766512231782,-500.0,7.643e-05,2]
[399576392,1766512231792,-500.0,7.643e-05,2]
[399576393,1766512231802,-500.0,7.643e-05,2]
[399576394,1766512231812,-500.0,7.643e-05,2]
[399576395,1766512231822,-500.0,7.643e-05,2]
[399576396,1766512231833,-500.0,7.643e-05,2]
[399576397,1766512231843,-500.0,7.643e-05,2]
[399576398,1766512231853,-500.0,7.643e-05,2]
[399576399,1766512231864,-500.0,7.643e-05,2]
[399576400,1766512231874,-500.0,7.643e-05,2]
[399576401,1766512231884,-500.0,7.643e-05,2]
[399576402,1766512231894,-500.0,7.643e-05,2]
[399576403,1766512231905,-500.0,7.643e-05,2]
[399576404,1766512231915,-500.0,7.643e-05,2]
[399576405,1766512231927,-333.92888303,7.643e-05,2]
[399576406,1766512231937,-500.0,7.643e-05,2]
[399576407,1766512231947,-500.0,7.643e-05,2]
[399576408,1766512231957,-500.0,7.643e-05,2]
[399576409,1766512231967,-500.0,7.643e-05,2]
[399576410,1766512231977,-500.0,7.643e-05,2]
[399576411,1766512231988,-500.0,7.643e-05,2]
[399576412,1766512231998,-2531.74821118,7.643e-05,2]
[399576413,1766512232009,-2531.74821118,7.643e-05,2]
[399576414,1766512232020,-2531.74821118,7.643e-05,2]
[399576415,1766512232030,-2531.74821118,7.643e-05,2]
[399576416,1766512232041,-2531.74821118,7.643e-05,2]
[399576417,1766512232052,-2531.74821118,7.643e-05,2]
[399576418,1766512232062,-2531.74821118,7.643e-05,2]
[399576419,1766512232073,-2531.74821118,7.643e-05,2]
[399576420,1766512232087,-2531.74821118,7.643e-05,2]
[399576421,1766512232097,-2531.74821118,7.643e-05,2]
[399576422,1766512232109,-2531.74821118,7.643e-05,2]
[399576423,1766512232122,-2531.74821118,7.643e-05,2]
[399576424,1766512232133,-2531.74821118,7.643e-05,2]
[399576425,1766512232143,-2531.74821118,7.643e-05,2]
[399576426,1766512232154,-2531.74821118,7.643e-05,2]
[399576427,1766512232165,-2531.74821118,7.643e-05,2]
[399576428,1766512232175,-2531.74821118,7.643e-05,2]
[399576429,1766512232185,-2531.74821118,7.643e-05,2]
[399576430,1766512232195,-2531.74821118,7.643e-05,2]
[399576431,1766512232206,-2531.74821118,7.643e-05,2]
[399576432,1766512232216,-2531.74821118,7.643e-05,2]
[399576433,1766512232227,-2531.74821118,7.643e-05,2]
[399576434,1766512232238,-2531.74821118,7.643e-05,2]
[399576435,1766512232249,-2531.74821118,7.643e-05,2]
[399576436,1766512232259,-2531.74821118,7.643e-05,2]
[399576437,1766512232270,-2531.74821118,7.643e-05,2]
[399576438,1766512232280,-2531.74821118,7.643e-05,2]
[399576439,1766512232291,-2531.74821118,7.643e-05,2]
[399576440,1766512232301,-2531.74821118,7.643e-05,2]
[399576441,1766512232311,-2531.74821118,7.643e-05,2]
[399576442,1766512232322,-2531.74821118,7.643e-05,2]
[399576443,1766512232333,-2531.74821118,7.643e-05,2]
[399576444,1766512232343,-2531.74821118,7.643e-05,2]
[399576445,1766512232354,-2531.74821118,7.643e-05,2]
[399576446,1766512232365,-2531.74821118,7.643e-05,2]
[399576447,1766512232376,-1449.44587461,7.643e-05,2]
[399576448,1766512232395,-1016.72874072,7.643e-05,2]
[399576449,1766512232411,-65.57359585,7.643e-05,2]
[399576450,1766512232422,-2531.74821118,7.643e-05,2]
[399576451,1766512232433,-2531.74821118,7.643e-05,2]
[399576452,1766512232443,-1870.71203685,7.643e-05,2]
[399576482,1766512238099,-554.58286843,7.643e-05,2]
[399576483,1766512238114,-106.4533059,7.643e-05,2]
[399576484,1766512238124,-1210.46223326,7.643e-05,2]
[399576485,1766512238139,-1321.28597792,7.643e-05,2]
[399576486,1766512238150,-61.52356918,7.643e-05,2]
[399576487,1766512238165,-2470.224642,7.643e-05,2]
[399576488,1766512238176,-2531.74821118,7.643e-05,2]
[399576489,1766512238186,-2531.74821118,7.643e-05,2]
[399576490,1766512238197,-2531.74821118,7.643e-05,2]
[399576491,1766512238207,-2531.74821118,7.643e-05,2]
[399576492,1766512238217,-2531.74821118,7.643e-05,2]
[399576493,1766512238227,-195.77019843,7.643e-05,2]
[399576494,1766512238241,-2335.97801275,7.643e-05,2]
[399576495,1766512238252,-2531.74821118,7.643e-05,2]
[399576496,1766512238262,-29.52946852,7.643e-05,2]
[399576497,1766512238274,-302.0,7.643e-05,2]
[399576498,1766512238287,-446.03775753,7.643e-05,2]
[399576499,1766512238299,-455.70417096,7.643e-05,2]
[399576500,1766512238311,-1298.47681417,7.643e-05,2]
[399576501,1766512238321,-2418.98967739,7.643e-05,2]
[399576502,1766512238330,-2418.98967739,7.643e-05,2]
[399576503,1766512238339,-2365.65361615,7.643e-05,2]
[399576504,1766512238350,-53.33606124,7.643e-05,2]
[399576505,1766512238360,-837.45473824,7.643e-05,2]
[399576506,1766512238386,-1581.53493915,7.643e-05,2]
[399576507,1766512238397,-2418.98967739,7.643e-05,2]
[399576508,1766512238407,-2418.98967739,7.643e-05,2]
[399576509,1766512238417,-2418.98967739,7.643e-05,2]
[399576510,1766512238428,-2418.98967739,7.643e-05,2]
[399576511,1766512238439,-2418.98967739,7.643e-05,2]
[399576512,1766512238449,-2418.98967739,7.643e-05,2]
[399576513,1766512238459,-2418.98967739,7.643e-05,2]
[399576514,1766512238469,-2418.98967739,7.643e-05,2]
[399576515,1766512238478,-2418.98967739,7.643e-05,2]
[399576516,1766512238488,-2418.98967739,7.643e-05,2]
[399576517,1766512238498,-2418.98967739,7.643e-05,2]
[399576518,1766512238508,-2418.98967739,7.643e-05,2]
[399576519,1766512238519,-2418.98967734,7.643e-05,2]
[399576520,1766512238528,-12437.8332008,7.647e-05,2]
[399576521,1766512238538,-1300.5728584,7.708e-05,2]
[399576522,1766512238548,-207.20831449,7.763e-05,2]
[399576523,1766512238558,-305.77,7.917e-05,2]
[399576524,1766512238567,-305.78,8.191e-05,2]
[399576525,1766512238576,-150.0,8.199e-05,2]
[399576526,1766512238586,-189.22,8.589e-05,2]
[399576527,1766512238596,-225.40628195,8.925e-05,2]
[399576528,1766512238606,-283.83,8.979e-05,2]
[399576529,1766512238616,-228.07,9.046e-05,2]
[399576530,1766512238625,-250.0,9.117e-05,2]
[399576531,1766512238635,-378.44,9.37e-05,2]
[399576532,1766512238646,-473.05,9.76e-05,2]
[399576533,1766512238656,-567.66,0.00010151,2]
[399576534,1766512238666,-160.0,0.0001047,2]
[399576535,1766512238675,-1041.66666667,0.0001047,2]
[399576536,1766512238685,-662.27,0.00010541,2]
[399576537,1766512238695,-259.79029106,0.00010925,2]
[399576538,1766512238705,-756.89,0.00010932,2]
[399576539,1766512238715,-826.95,0.00010958,2]
[399576540,1766512238725,-826.95,0.00010958,2]
[399576541,1766512238735,-826.95,0.00010958,2]
[399576542,1766512238744,-826.95,0.00010958,2]
[399576543,1766512238754,-826.95,0.00010958,2]
[399576544,1766512238763,-826.95,0.00010958,2]
[399576545,1766512238773,-826.95,0.00010958,2]
[399576546,1766512238783,-826.95,0.00010958,2]
[399576547,1766512238793,-826.95,0.00010958,2]
[399576548,1766512238802,-826.95,0.00010958,2]
[399576549,1766512238812,-826.95,0.00010958,2]
[399576550,1766512238822,-826.95,0.00010958,2]
[399576551,1766512238831,-684.7229129,0.00010959,2]
[399576552,1766512238841,-507.91038254,0.00010959,2]
[399576553,1766512238850,-851.5,0.00011322,2]
[399576554,1766512238860,-826.95,0.00011324,2]
[399576555,1766512238870,-633.0,0.00011325,2]
[399576556,1766512238881,-2160.0,0.00011325,2]
[399576557,1766512238891,-1363.0,0.00011325,2]
[399576558,1766512238900,-218.592,0.00011325,2]
[399576559,1766512238910,-238.135,0.00011325,2]
[399576560,1766512238920,-416.0,0.00011325,2]
[399576561,1766512238929,-250.0,0.00011325,2]
[399576562,1766512238939,-154.49216669,0.00011342,2]
[399576563,1766512238949,-178.733,0.000114,2]
[399576564,1766512238959,-151.0,0.00011598,2]
[399576565,1766512238968,-533.88981491,0.00011598,2]
[399576566,1766512238978,-151.0,0.00011598,2]
[399576567,1766512238988,-151.0,0.00011598,2]
[399576568,1766512238998,-151.0,0.00011598,2]
[399576569,1766512239009,-151.0,0.00011598,2]
[399576570,1766512239019,-151.0,0.00011598,2]
[399576571,1766512239029,-151.0,0.00011598,2]
[399576572,1766512239039,-151.0,0.00011598,2]
[399576573,1766512239049,-151.0,0.00011598,2]
[399576574,1766512239059,-151.0,0.00011598,2]
[399576575,1766512239071,-151.0,0.00011598,2]
[399576576,1766512239085,-151.0,0.00011598,2]
[399576577,1766512239095,-151.0,0.00011598,2]
[399576578,1766512239104,-500.0,0.00011598,2]
[399576579,1766512239115,-500.0,0.00011598,2]
[399576580,1766512239126,-500.0,0.00011598,2]
[399576581,1766512239137,-500.0,0.00011598,2]
[399576582,1766512239147,-500.0,0.00011598,2]
[399576583,1766512239159,-500.0,0.00011598,2]
[399576584,1766512239170,-500.0,0.00011598,2]
[399576585,1766512239181,-946.11,0.00011712,2]
[399576586,1766512239191,-4466.0,0.00012107,2]
[399576587,1766512239201,-553.64373807,0.00012146,2]
[399576588,1766512239213,-436.36071688,0.00012228,2]
[399576589,1766512239224,-325.62717798,0.00012228,2]
[399576590,1766512239234,-220.92421396,0.00012228,2]
[399576591,1766512239245,-1169.63555689,0.00012228,2]
[399576592,1766512239255,-357.45648749,0.00012228,2]
[399576593,1766512239266,-643.42167747,0.00012228,2]
[399576594,1766512239277,-1143.86075995,0.00012228,2]
[399576595,1766512239287,-826.95,0.00012328,2]
[399576596,1766512239297,-446.79,0.00012329,2]
[399576597,1766512239307,-372.33,0.00012329,2]
[399576598,1766512239318,-598.7514956,0.00012329,2]
[399576599,1766512239330,-598.7514956,0.00012329,2]
[399576600,1766512239340,-1201.4676483,0.00012329,2]
[399576601,1766512239350,-598.7514956,0.00012329,2]
[399576602,1766512239360,-598.7514956,0.00012329,2]
[399576603,1766512239371,-598.7514956,0.00012329,2]
[399576604,1766512239383,-598.7514956,0.00012329,2]
[399576605,1766512239400,-435.56950642,0.00012329,2]
[399576607,1766512239417,-163.18198918,0.00012329,2]
[399576608,1766512239428,-598.7514956,0.00012329,2]
[399576609,1766512239438,-598.7514956,0.00012329,2]
[399576610,1766512239448,-598.7514956,0.00012329,2]
[399576611,1766512239459,-598.7514956,0.00012329,2]
[399576612,1766512239468,-598.7514956,0.00012329,2]
[399576613,1766512239478,-598.7514956,0.00012329,2]
[399576614,1766512239489,-598.7514956,0.00012329,2]
[399576615,1766512239499,-598.7514956,0.00012329,2]
[399576616,1766512239509,-598.7514956,0.00012329,2]
[399576618,1766512239523,-598.7514956,0.00012329,2]
[399576620,1766512239535,-598.7514956,0.00012329,2]
[399576622,1766512239547,-598.7514956,0.00012329,2]
[399576623,1766512239557,-598.7514956,0.00012329,2]
[399576624,1766512239567,-2440.23427299,0.0001238,2]
[399576626,1766512239577,-372.14534626,0.0001243,2]
[399576628,1766512239586,-1508.6949183,0.00012517,2]
[399576629,1766512239595,-160.9901411,0.00012517,2]
[399576630,1766512239605,-1787.28243743,0.00012525,2]
[399576631,1766512239615,-746.95944957,0.00012613,2]
[399576632,1766512239626,-397.66358514,0.00012628,2]
[399576634,1766512239640,-574.12855637,0.00012694,2]
[399576635,1766512239651,-697092.76868174,0.0001287,2]
[399576657,1766512239897,-18014.57960183,0.0001287,2]
[399576659,1766512239909,-254.01130894,0.0001287,2]
[399576661,1766512239951,-841.52588397,0.0001287,2]
[399576662,1766512239963,-3590.18873387,0.0001287,2]
[399576663,1766512239975,-825.6962295,0.0001287,2]
[399576664,1766512239987,-1553.17549407,0.0001287,2]
[399576665,1766512240007,-272.33990001,0.0001287,2]
[399576675,1766512243114,-5977.36133381,0.0001287,2]
[399576692,1766512245857,-266.693,0.00011325,2]
[399576693,1766512245867,-536.15544993,0.0001287,2]
[399576694,1766512245878,-3112.07164149,0.0001287,2]
[399576695,1766512245906,-39039.54714285,0.0001287,2]
[399576698,1766512523726,5000.0,6.893e-05,2]
[399576699,1766512546567,5000.0,6.893e-05,2]
[399576700,1766512775883,461.87398883,6.893e-05,2]
[399576701,1766512830346,-245.47231568,6.9e-05,2]
[399576743,1766513431788,-500.0,6.9e-05,2]
[399576744,1766513431798,-321.49765174,6.9e-05,2]
[399576746,1766513431809,-518.0,6.9e-05,2]
[399576748,1766513431819,-184.29352978,6.913e-05,2]
[399576749,1766513431830,-277.0,7.598e-05,2]
[399576750,1766513431840,-300.0,7.598e-05,2]
[399576751,1766513431850,-300.0,7.598e-05,2]
[399576752,1766513431861,-1200.0,7.598e-05,2]
[399576753,1766513431871,-300.0,7.598e-05,2]